bitfinex-derivatives/quotes_SOLF0:USTF0_20250127
["timestamp","ask_amount","ask_price","bid_price","bid_amount"]
[1737991094883,0.03100406,233.22,233.19,0.02889694]
[1737991095682,0.03100406,233.22,233.21,4.2877]
[1737991095890,0.03100406,233.22,233.2,3.1617]
[1737991096490,0.03100406,233.22,233.2,7.4496]
[1737991096684,3.1886,233.38,233.2,3.1617]
[1737991096878,26.4973949,233.4,233.21,2.5996]
[1737991097084,2.6664,233.42,233.29,4.2861]
[1737991097283,2.6664,233.42,233.21,29.0969949]
[1737991097480,26.4973949,233.4,233.21,2.5996]
[1737991097679,2.6664,233.42,233.13,26.4973949]
[1737991097907,26.4973949,233.32,233.14,0.77381892]
[1737991098085,6.0495,233.31,233.11,3.1897]
[1737991098281,26.4973949,233.41,233.11,488.1897]
[1737991098487,26.4973949,233.41,233.19,26.4973949]
[1737991098788,4.2853,233.34,233.19,26.4973949]
[1737991098988,26.4973949,233.41,233.19,26.4973949]
[1737991099190,0.02924624,233.29,233.24,0.03071978]
[1737991099384,26.4973949,233.41,233.24,4.287]
[1737991099589,0.02791634,233.35,233.3,0.02847112]
[1737991101286,0.02791634,233.35,233.11,195.1897]
[1737991101489,0.02791634,233.35,233.12,3.5732912]
[1737991101695,26.4973949,233.37,233.13,0.7737912]
[1737991102091,26.4973949,233.33,233.12,2.7995]
[1737991102290,3.1647,233.32,233.12,2.7995]
[1737991102490,0.02945153,233.25,233.2,4.31492261]
[1737991103090,0.02945153,233.25,233.2,0.02702261]
[1737991104290,0.02945153,233.25,233.24,4.2872]
[1737991104693,4.2853,233.34,233.26,4.2867]
[1737991104891,3.349,233.4,233.21,3.2848]
[1737991105689,3.349,233.4,233.19,26.4973949]
[1737991105894,0.02991753,233.33,233.28,0.03223844]
[1737991107290,0.02991753,233.33,233.28,4.31843844]
[1737991107486,0.02991753,233.33,233.28,0.03223844]
[1737991107791,4.2862,233.29,233.21,4.2877]
[1737991108192,2.694,233.39,233.19,26.4973949]
[1737991108391,2.694,233.39,233.24,26.4973949]
[1737991108784,4.2853,233.34,233.26,4.2868]
[1737991108989,0.02809287,233.34,233.29,0.0296408]
[1737991109294,4.2861,233.3,233.29,0.0296408]
[1737991109596,0.02809287,233.34,233.29,0.0296408]
[1737991111295,0.02809287,233.34,233.3,26.4973949]
[1737991111494,4.284,233.42,233.34,4.2852]
[1737991111794,3.0824,233.49,233.3,26.4973949]
[1737991111986,4.2838,233.43,233.33,4.2855]
[1737991112191,3.0824,233.49,233.3,26.4973949]
[1737991112496,29.5797949,233.49,233.26,29.0489949]
[1737991112690,0.03213617,233.42,233.37,0.03188656]
[1737991112993,0.03213617,233.42,233.26,26.4973949]
[1737991113188,26.4973949,233.45,233.27,4.2866]
[1737991113489,26.4973949,233.45,233.22,26.4973949]
[1737991113793,26.4973949,233.37,233.18,26.4973949]
[1737991113992,5.6728,233.36,233.14,26.4973949]
[1737991114198,0.03053964,233.3,233.25,0.029305]
[1737991115791,4.31663964,233.3,233.25,0.029305]
[1737991116090,0.03053964,233.3,233.11,2.5942]
[1737991116394,16.674145,233.3,233.11,4.2894]
[1737991116597,27.11429966,233.3,233.08,30.35389966]
[1737991116798,27.11429966,233.34,233.12,27.11429966]
[1737991117295,0.02783555,233.25,233.2,27.11429966]
[1737991117687,0.02957495,233.25,233.16,27.11429966]
[1737991117893,0.02957495,233.25,233.12,27.11429966]
[1737991118194,0.02957495,233.25,233.16,4.2886]
[1737991118393,0.02957495,233.25,233.12,27.11429966]
[1737991118597,0.02957495,233.25,233.13,0.77403696]
[1737991118794,0.02957495,233.25,233.12,27.11429966]
[1737991119296,0.02957495,233.25,233.13,4.289]
[1737991119797,0.02957495,233.25,233.08,27.11429966]
[1737991119990,2.6876,233.25,233.04,27.11429966]
[1737991120397,0.02983485,233.19,233.04,27.11429966]
[1737991120601,2.6876,233.25,233.04,27.11429966]
[1737991120896,0.02729152,233.14,233.04,27.11429966]
[1737991121689,0.02729152,233.14,233.0,27.11429966]
[1737991121892,27.11429966,233.22,233.01,4.2912]
[1737991122093,0.03237915,233.09,233.0,27.11429966]
[1737991122294,4.2887,233.16,233.02,4.2911]
[1737991122497,0.02784301,233.07,233.0,27.11429966]
[1737991122697,0.02784301,233.07,233.01,0.77445837]
[1737991122895,0.02784301,233.07,233.0,27.11429966]
[1737991123400,0.02784301,233.07,232.96,27.11429966]
[1737991123796,0.02784301,233.07,232.99,4.2917]
[1737991125202,0.02784301,233.07,233.01,4.2913]
[1737991125803,0.02784301,233.07,232.96,27.11429966]
[1737991126406,0.02784301,233.07,232.97,0.77449944]
[1737991127403,0.02784301,233.07,233.0,27.11429966]
[1737991127704,0.02784301,233.07,233.05,4.2905]
[1737991128003,0.02784301,233.07,233.0,27.11429966]
[1737991128204,0.02784301,233.07,232.96,27.11429966]
[1737991128404,0.02784301,233.07,232.97,0.77454016]
[1737991129105,0.02784301,233.07,232.96,27.11429966]
[1737991129297,0.02784301,233.07,232.97,0.774539]
[1737991129603,4.31814301,233.07,232.97,0.774539]
[1737991130199,4.2905,233.06,232.99,4.2917]
[1737991130404,0.02784301,233.07,232.96,27.11429966]
[1737991130998,0.02784301,233.07,233.0,27.11429966]
[1737991131201,0.02784301,233.07,233.04,4.2908]
[1737991131499,0.02784301,233.07,233.0,27.11429966]
[1737991131903,0.02784301,233.07,233.01,0.77444702]
[1737991132098,0.02784301,233.07,233.06,4.2905]
[1737991132705,3.1308,233.23,233.04,27.11429966]
[1737991132902,4.2882,233.19,233.08,27.11429966]
[1737991133208,3.1308,233.23,233.08,27.11429966]
[1737991133906,0.02871339,233.18,233.13,0.02812033]
[1737991136908,4.31711339,233.18,233.13,0.02812033]
[1737991137302,0.02871339,233.18,233.13,0.02812033]
[1737991137509,4.2885,233.17,233.13,0.02812033]
[1737991138005,4.2886,233.16,233.13,0.02812033]
[1737991138504,0.02871339,233.18,233.13,0.02812033]
[1737991139306,4.2887,233.16,233.13,0.02812033]
[1737991139512,0.02871339,233.18,233.13,0.02812033]
[1737991140407,2.6194,233.29,233.16,16.69264939]
[1737991140802,2.6194,233.29,233.22,4.2874]
[1737991141010,2.8108,233.31,233.2,16.69264939]
[1737991141205,2.7772,233.38,233.24,16.69264939]
[1737991141915,0.03269164,233.33,233.29,0.02762373]
[1737991142815,16.69264939,233.31,233.18,2.6449]
[1737991143009,4.288,233.2,233.11,4.2895]
[1737991143223,16.69264939,233.14,233.07,12.186148]
[1737991143510,16.69264939,233.09,232.93,192.0]
[1737991143708,16.69264939,233.09,232.94,3.60139019]
[1737991144015,16.69264939,233.13,232.95,0.76850125]
[1737991144207,0.03247991,233.04,232.99,0.02730324]
[1737991144516,0.03247991,233.04,233.0,4.2915]
[1737991145210,0.03247991,233.04,232.99,0.03030699]
[1737991146421,0.03247991,233.04,233.0,4.2915]
[1737991146618,0.03247991,233.04,232.99,0.03030699]
[1737991146815,0.03247991,233.04,233.0,4.2915]
[1737991147118,0.03247991,233.04,232.99,0.03030699]
[1737991147321,4.2895,233.12,233.0,4.2915]
[1737991147710,16.69264939,233.15,232.95,5.408]
[1737991147915,4.2889,233.15,233.03,4.291]
[1737991148118,4.2889,233.15,232.97,16.69264939]
[1737991148424,4.2898,233.1,232.98,0.76850082]
[1737991148621,0.0272312,233.08,233.04,0.02861232]
[1737991152218,0.0272312,233.08,233.06,4.2905]
[1737991152422,0.0272312,233.08,233.04,0.02861232]
[1737991152817,0.0272312,233.08,233.07,4.2903]
[1737991153023,0.0272312,233.08,233.04,0.02861232]
[1737991153215,0.0272312,233.08,233.07,4.2903]
[1737991153722,0.0272312,233.08,233.04,0.02861232]
[1737991154823,0.0272312,233.08,233.06,4.2904]
[1737991155025,0.0272312,233.08,233.04,0.02861232]
[1737991155925,0.0272312,233.08,233.05,4.2905]
[1737991156423,0.0272312,233.08,233.04,0.02861232]
[1737991156816,16.69264939,233.27,233.04,0.02861232]
[1737991157022,11.42188157,233.26,233.12,4.2892]
[1737991157219,4.2873,233.24,233.07,16.69264939]
[1737991157424,3.49948488,233.25,233.08,4.04720054]
[1737991157723,3.03811782,233.24,233.09,0.76820054]
[1737991157945,0.03043806,233.19,233.14,0.0324296]
[1737991158222,4.2888,233.15,233.14,0.0324296]
[1737991158431,16.72308745,233.19,233.01,4.03406584]
[1737991158618,11.95354247,233.18,233.01,3.2657]
[1737991158822,6.00614247,233.17,233.03,4.291]
[1737991159022,9.51142276,233.16,233.03,4.291]
[1737991159220,3.03969149,233.15,233.03,4.291]
[1737991159420,0.03103317,233.11,233.07,0.03242462]
[1737991160330,3.04097504,233.1,232.91,16.69264939]
[1737991160527,4.2901,233.08,232.97,4.2921]
[1737991160731,20.19887107,233.1,232.91,16.69264939]
[1737991160931,2.6854,233.07,232.89,3.2657]
[1737991161137,2.7238,233.06,232.91,16.69264939]
[1737991161327,16.69264939,233.14,232.92,0.76878493]
[1737991161631,0.03058364,233.01,232.98,4.2918]
[1737991161843,0.03058364,233.01,232.91,16.69264939]
[1737991162038,0.03058364,233.01,232.97,0.0309996]
[1737991163033,4.2918,232.99,232.97,0.0309996]
[1737991163335,19.73244267,232.98,232.82,173.51407429]
[1737991163640,16.69264939,232.94,232.82,173.51407429]
[1737991164035,4.2933,232.91,232.82,173.51407429]
[1737991164238,16.69264939,232.94,232.82,173.51407429]
[1737991164540,0.03237582,232.89,232.82,173.51407429]
[1737991164744,4.2939,232.88,232.82,173.51407429]
[1737991164940,0.03237582,232.89,232.82,173.51407429]
[1737991165438,0.03237582,232.89,232.77,2.64]
[1737991165941,0.03237582,232.89,232.77,6.9358]
[1737991166145,0.03237582,232.89,232.77,2.64]
[1737991166441,0.03237582,232.89,232.73,3.2873]
[1737991166643,0.03237582,232.89,232.76,16.69264939]
[1737991166937,0.02873439,232.83,232.77,0.76927421]
[1737991167339,16.69264939,233.02,232.8,16.69264939]
[1737991167538,4.2918,232.99,232.84,16.69264939]
[1737991167738,3.48988743,233.01,232.85,8.4368]
[1737991167936,3.02621588,233.0,232.8,16.69264939]
[1737991168140,3.02621588,232.99,232.81,3.1572]
[1737991168340,3.48988743,233.0,232.81,3.1572]
[1737991168647,0.03158747,232.92,232.88,0.02873439]
[1737991169137,0.03060984,232.92,232.88,0.02873439]
[1737991169355,0.03060984,232.92,232.9,4.2933]
[1737991170041,0.03060984,232.92,232.88,0.02873439]
[1737991170431,4.2932,232.91,232.88,0.02873439]
[1737991170635,0.03060984,232.92,232.88,0.02873439]
[1737991170831,0.03060984,232.92,232.9,4.2934]
[1737991171333,0.03060984,232.92,232.88,0.02873439]
[1737991172741,4.2936,232.89,232.88,0.02873439]
[1737991172943,16.69264939,232.9,232.71,192.0]
[1737991173146,3.326,232.88,232.72,0.76940832]
[1737991173462,3.326,232.88,232.73,0.76940832]
[1737991173641,3.326,232.88,232.74,0.76940832]
[1737991173843,16.69264939,232.86,232.72,4.2965]
[1737991174032,0.03296488,232.83,232.72,4.2965]
[1737991174234,0.03296488,232.83,232.67,3.222]
[1737991174444,16.69264939,232.86,232.75,4.2961]
[1737991174639,0.03191577,232.77,232.75,4.2961]
[1737991174941,27.21069583,232.82,232.67,3.222]
[1737991175140,27.21069583,232.7,232.57,173.51407429]
[1737991175340,27.21069583,232.74,232.57,173.51407429]
[1737991175643,0.03002273,232.66,232.57,173.51407429]
[1737991175835,0.03002273,232.66,232.59,0.76985531]
[1737991176041,0.03002273,232.66,232.57,173.51407429]
[1737991176642,0.03002273,232.66,232.58,231.2535785]
[1737991176841,0.03002273,232.66,232.58,226.9543785]
[1737991177239,0.03002273,232.66,232.6,4.2989]
[1737991177565,0.03002273,232.66,232.58,226.9543785]
[1737991178340,4.32792273,232.66,232.58,226.9543785]
[1737991178547,4.32792273,232.66,232.53,4.3001]
[1737991178841,4.2984,232.63,232.51,4.3006]
[1737991179144,27.21069583,232.65,232.37,192.0]
[1737991179145,27.21069583,232.65,232.41,27.21069583]
[1737991179340,0.0297634,232.59,232.37,27.21069583]
[1737991179543,0.0297634,232.59,232.38,0.7704668]
[1737991179738,3.264,232.6,232.38,0.7704668]
[1737991179940,0.03207079,232.51,232.45,4.3015]
[1737991180141,0.03207079,232.51,232.37,27.21069583]
[1737991180446,2.7696,232.59,232.45,27.21069583]
[1737991180664,3.264,232.6,232.45,27.21069583]
[1737991180944,27.21069583,232.65,232.46,5.8225]
[1737991181151,27.21069583,232.65,232.46,3.1562]
[1737991181350,27.21069583,232.61,232.41,27.21069583]
[1737991181847,0.03266477,232.53,232.49,0.02978148]
[1737991183344,0.03266477,232.53,232.51,4.3004]
[1737991184147,0.03266477,232.53,232.49,0.02978148]
[1737991185954,0.03266477,232.53,232.51,4.3006]
[1737991186543,0.03266477,232.53,232.49,4.33058148]
[1737991186745,0.03266477,232.53,232.49,0.02978148]
[1737991187147,4.33296477,232.53,232.49,0.02978148]
[1737991187349,0.03266477,232.53,232.49,0.02978148]
[1737991188243,4.3006,232.51,232.49,0.02978148]
[1737991188546,0.03266477,232.53,232.39,0.16777]
[1737991188851,27.21069583,232.61,232.41,27.21069583]
[1737991189648,0.02956375,232.53,232.41,27.21069583]
[1737991189844,2.7696,232.67,232.49,27.21069583]
[1737991190050,2.7696,232.67,232.48,27.21069583]
[1737991190254,27.21069583,232.66,232.44,27.21069583]
[1737991190750,4.2989,232.61,232.53,4.3001]
[1737991190941,27.21069583,232.66,232.45,3.2212]
[1737991191146,0.02822293,232.59,232.55,0.03029838]
[1737991192451,0.02822293,232.59,232.56,4.2997]
[1737991192851,0.02822293,232.59,232.55,0.03029838]
[1737991193155,27.21069583,232.91,232.58,27.21069583]
[1737991193352,27.21069583,232.91,232.66,27.21069583]
[1737991193353,5.7711,232.85,232.66,27.21069583]
[1737991193554,5.7711,232.85,232.7,27.21069583]
[1737991193754,5.7711,232.85,232.66,27.21069583]
[1737991194152,0.02769711,232.78,232.73,0.03171903]
[1737991194959,4.2963,232.75,232.73,0.03171903]
[1737991195259,0.02769711,232.78,232.59,12.1568]
[1737991195448,4.2967,232.73,232.6,4.2988]
[1737991195754,27.21069583,232.79,232.59,5.8818]
[1737991196549,0.03257181,232.71,232.67,0.02762506]
[1737991198162,0.03257181,232.71,232.69,4.2972]
[1737991198661,5.7711,232.85,232.67,0.02762506]
[1737991198955,5.7711,232.85,232.63,27.21069583]
[1737991199164,27.21069583,232.83,232.6,2.6794]
[1737991199355,27.21069583,232.83,232.62,4.2984]
[1737991199654,0.0314544,232.75,232.7,0.02881887]
[1737991200054,0.0314544,232.75,232.59,5.8818]
[1737991200055,27.21069583,232.74,232.53,27.21069583]
[1737991200255,2.7914,232.73,232.53,27.21069583]
[1737991200459,27.21069583,232.7,232.48,5.8573]
[1737991200660,27.21069583,232.7,232.5,27.36991583]
[1737991200956,5.524,232.73,232.51,0.77006927]
[1737991201161,0.02926094,232.62,232.58,0.0273453]
[1737991201460,5.524,232.73,232.56,2.8125]
[1737991201656,27.21069583,232.8,232.6,27.21069583]
[1737991201864,5.524,232.83,232.68,27.21069583]
[1737991202065,27.21069583,232.94,232.72,27.21069583]
[1737991202261,29.94329583,232.99,232.76,27.21069583]
[1737991202460,2.7914,232.98,232.81,27.23998242]
[1737991202661,6.24081592,232.98,232.81,27.23998242]
[1737991202963,6.24081592,232.98,232.73,2.8125]
[1737991202964,27.21069583,232.88,232.64,27.21069583]
[1737991203155,27.21069583,232.84,232.63,3.1324]
[1737991203357,27.21069583,232.76,232.58,2.615]
[1737991203760,4.2986,232.62,232.53,27.21069583]
[1737991203964,0.03238114,232.69,232.53,27.21069583]
[1737991204255,2.6406,232.75,232.59,4.299]
[1737991204256,0.02876949,232.63,232.59,4.299]
[1737991204456,0.02876949,232.63,232.53,27.21069583]
[1737991204662,27.21069583,232.73,232.59,0.03047119]
[1737991204862,0.02977588,232.6,232.59,0.03047119]
[1737991205062,27.21069583,232.69,232.5,0.15922]
[1737991205261,0.03207254,232.62,232.57,0.03120707]
[1737991205659,6.1892326,232.68,232.53,27.21069583]
[1737991205861,0.02735932,232.62,232.57,0.02967764]
[1737991206264,0.02735932,232.62,232.58,4.2992]
[1737991206485,0.02735932,232.62,232.57,0.02967764]
[1737991206860,4.2996,232.57,232.43,4.3021]
[1737991207058,27.21069583,232.53,232.27,27.21069583]
[1737991207265,27.21069583,232.53,232.28,0.77045691]
[1737991207465,4.3012,232.48,232.34,4.3036]
[1737991207764,4.3012,232.48,232.37,27.21069583]
[1737991208060,0.03139999,232.43,232.4,4.3026]
[1737991208267,0.03139999,232.43,232.39,0.02740765]
[1737991208458,4.3005,232.52,232.4,4.3025]
[1737991208662,2.6767,232.61,232.39,0.02775971]
[1737991208859,2.6767,232.61,232.39,2.7369]
[1737991209362,3.45719132,232.6,232.41,4.3023]
[1737991209581,3.45719132,232.6,232.39,2.7369]
[1737991209769,3.45719132,232.6,232.43,27.21069583]
[1737991209964,2.6767,232.61,232.47,0.03101628]
[1737991209965,0.03014938,232.52,232.47,0.03101628]
[1737991210272,0.03014938,232.52,232.48,27.21069583]
[1737991210463,2.6345,232.7,232.52,4.3004]
[1737991210771,2.96421256,232.69,232.49,2.822]
[1737991211080,3.46044587,232.68,232.5,3.1551]
[1737991211370,4.2987,232.62,232.5,7.4558]
[1737991211570,0.03305257,232.61,232.57,0.03279063]
[1737991213171,0.03305257,232.61,232.59,4.2991]
[1737991213667,0.03305257,232.61,232.57,0.03279063]
[1737991213668,10.38291723,232.88,232.57,0.03279063]
[1737991213861,14.50120454,232.79,232.57,0.03279063]
[1737991214069,4.2978,232.67,232.56,27.21069583]
[1737991214266,8.6327,232.79,232.6,4.2988]
[1737991214465,5.87645892,232.78,232.61,27.21069583]
[1737991214670,3.47228475,232.77,232.66,27.21069583]
[1737991214864,3.47228475,232.77,232.67,6.1111]
[1737991215063,0.02845221,232.72,232.67,6.13902225]
[1737991216373,0.02845221,232.72,232.67,3.35282225]
[1737991216573,0.02845221,232.72,232.67,0.02792225]
[1737991216966,2.9824453,232.86,232.71,27.21069583]
[1737991217275,3.48099772,232.86,232.71,27.21069583]
[1737991217474,3.48099772,232.86,232.72,0.76938345]
[1737991217674,3.48099772,232.86,232.71,27.21069583]
[1737991217970,8.7206,232.94,232.76,27.21069583]
[1737991218270,0.02803588,232.81,232.76,27.24357883]
[1737991218469,3.48271872,232.93,232.76,27.21069583]
[1737991218676,1.006e-05,232.81,232.8,4.2952]
[1737991218874,2.785,232.94,232.73,3.78]
[1737991219273,4.2935,232.9,232.74,0.76919138]
[1737991219467,2.785,232.94,232.78,27.21069583]
[1737991219669,2.785,232.94,232.79,6.67989138]
[1737991219978,0.03031011,232.88,232.84,0.0301853]
[1737991220770,4.2942,232.86,232.84,8.53e-05]
[1737991220974,0.03031011,232.88,232.84,8.53e-05]
[1737991222074,4.2942,232.86,232.84,8.53e-05]
[1737991223073,4.294,232.87,232.84,8.53e-05]
[1737991223275,0.03031011,232.88,232.84,8.53e-05]
[1737991223875,4.2943,232.86,232.84,8.53e-05]
[1737991225087,3.1554,232.85,232.84,8.53e-05]
[1737991225490,30.36609583,232.85,232.84,8.53e-05]
[1737991225682,3.1554,232.85,232.84,8.53e-05]
[1737991225987,10.92126467,232.85,232.84,8.53e-05]
[1737991226481,7.4497,232.85,232.84,8.53e-05]
[1737991226683,4.2941,232.87,232.84,8.53e-05]
[1737991226882,0.03031011,232.88,232.84,8.53e-05]
[1737991227581,4.2943,232.85,232.84,8.53e-05]
[1737991229689,0.03031011,232.88,232.84,8.53e-05]
[1737991230190,4.2943,232.85,232.84,8.53e-05]
[1737991231991,7.76591819,232.85,232.84,8.53e-05]
[1737991232395,10.50061819,232.85,232.84,8.53e-05]
[1737991232784,7.029,232.85,232.84,8.53e-05]
[1737991233196,2.7347,232.85,232.84,8.53e-05]
[1737991233391,4.2942,232.86,232.84,8.53e-05]
[1737991233693,0.03031011,232.88,232.84,8.53e-05]
[1737991233997,4.2943,232.85,232.84,8.53e-05]
[1737991234195,0.03031011,232.88,232.84,8.53e-05]
[1737991237599,4.294,232.87,232.84,8.53e-05]
[1737991237789,0.03031011,232.88,232.84,8.53e-05]
[1737991238294,4.32431011,232.88,232.84,8.53e-05]
[1737991238497,0.03031011,232.88,232.84,8.53e-05]
[1737991239603,0.03031011,232.88,232.87,4.294]
[1737991240102,3.2308,232.99,232.9,4.2933]
[1737991240296,2.6926,233.04,232.87,27.21069583]
[1737991240698,2.6926,233.04,232.93,4.2928]
[1737991240898,2.6926,233.04,232.92,27.21069583]
[1737991241100,3.256,233.09,232.96,27.21069583]
[1737991241296,4.2904,233.07,233.0,4.2914]
[1737991241503,3.256,233.09,232.96,27.23942109]
[1737991241696,0.02996834,233.05,232.96,27.21069583]
[1737991241899,0.02996834,233.05,233.0,0.03113046]
[1737991242497,0.02996834,233.05,233.02,4.2912]
[1737991243102,0.02996834,233.05,233.0,0.03113046]
[1737991243707,0.02996834,233.05,233.0,4.32263046]
[1737991243901,0.02996834,233.05,233.0,0.03113046]
[1737991244111,0.02996834,233.05,233.01,27.21069583]
[1737991244705,27.21069583,233.23,233.01,31.50189583]
[1737991244904,27.21069583,233.23,233.01,27.21069583]
[1737991245102,6.44301543,233.22,233.01,27.21069583]
[1737991245306,27.21069583,233.19,232.97,36.38119583]
[1737991245710,3.47004753,233.18,232.97,36.38119583]
[1737991246008,0.02935829,233.1,233.06,0.03058917]
[1737991247006,5.7841,233.26,233.06,27.241285]
[1737991247401,3.46331598,233.25,233.06,27.21069583]
[1737991247807,4.2886,233.17,233.06,27.21069583]
[1737991248113,3.46331598,233.25,233.06,27.21069583]
[1737991248409,0.02925351,233.14,233.09,0.02916376]
[1737991248811,0.02925351,233.14,233.1,27.21069583]
[1737991249011,2.6148,233.26,233.1,27.21069583]
[1737991249212,3.2119,233.34,233.19,27.21069583]
[1737991249512,3.2119,233.34,233.23,27.21069583]
[1737991249704,2.7047,233.39,233.23,27.21069583]
[1737991250309,0.03300574,233.33,233.29,0.02820678]
[1737991251412,0.03300574,233.33,233.29,4.31430678]
[1737991251713,3.2119,233.46,233.32,27.21069583]
[1737991251911,4.2827,233.49,233.4,4.2842]
[1737991252113,27.21069583,233.62,233.37,27.21069583]
[1737991252406,0.85612773,233.61,233.42,27.21069583]
[1737991252606,0.85612773,233.61,233.46,27.21069583]
[1737991252810,0.02979896,233.54,233.49,0.03138079]
[1737991254415,0.02979896,233.54,233.51,27.21069583]
[1737991254706,0.02979896,233.54,233.49,0.03138079]
[1737991255510,0.02979896,233.54,233.53,27.21069583]
[1737991255815,5.9841,233.73,233.53,27.21069583]
[1737991256119,8.638,233.73,233.48,27.21069583]
[1737991256319,4.2819,233.53,233.48,27.21069583]
[1737991256516,27.21069583,233.64,233.43,27.21069583]
[1737991256811,0.02750935,233.53,233.48,0.03220962]
[1737991257214,3.42940292,233.63,233.39,27.21069583]
[1737991257409,0.02941973,233.53,233.48,0.02734995]
[1737991257717,27.21069583,233.56,233.4,0.85689802]
[1737991257920,2.6869,233.55,233.4,0.85689802]
[1737991258117,4.283,233.47,233.4,0.85689802]
[1737991258418,2.6869,233.55,233.4,0.85689802]
[1737991258815,0.03295129,233.5,233.45,0.02906281]
[1737991259415,4.2828,233.48,233.45,0.02906281]
[1737991259919,4.283,233.47,233.45,0.02906281]
[1737991260119,0.03295129,233.5,233.31,27.21069583]
[1737991260316,27.21069583,233.52,233.27,27.21069583]
[1737991260621,27.21069583,233.44,233.23,8.8857]
[1737991260824,5.8994,233.43,233.23,8.8857]
[1737991261018,5.8994,233.43,233.23,36.09639583]
[1737991261234,27.21069583,233.57,233.36,27.21069583]
[1737991261525,2.5823,233.56,233.4,27.21069583]
[1737991261710,2.5823,233.56,233.42,4.2838]
[1737991262109,2.5823,233.56,233.36,35.83869583]
[1737991262413,2.5823,233.56,233.35,3.7]
[1737991262414,0.02746468,233.48,233.44,0.02756198]
[1737991262615,4.283,233.47,233.44,0.02756198]
[1737991262914,0.03160551,233.48,233.43,0.02716538]
[1737991263113,3.3171,233.55,233.36,27.21069583]
[1737991263313,2.5823,233.69,233.46,27.21069583]
[1737991263516,5.8994,233.69,233.46,27.21069583]
[1737991263716,27.21069583,233.62,233.37,8.628]
[1737991264110,27.21069583,233.66,233.37,8.628]
[1737991264314,5.8994,233.69,233.52,27.21069583]
[1737991264514,27.21069583,234.0,233.37,21.488]
[1737991264515,27.21069583,233.84,233.62,27.21069583]
[1737991264718,0.85532224,233.83,233.67,27.21069583]
[1737991265213,4.2772,233.79,233.67,27.21069583]
[1737991265442,0.85550517,233.78,233.63,2.6957]
[1737991265917,0.02774069,233.73,233.7,27.21069583]
[1737991266218,2.5662,233.89,233.7,27.21069583]
[1737991266820,2.5662,233.89,233.65,27.21069583]
[1737991267113,27.21069583,233.85,233.75,2.875e-05]
[1737991267315,4.2776,233.76,233.75,2.875e-05]
[1737991270321,0.03270741,233.78,233.75,2.875e-05]
[1737991272425,4.2759,233.86,233.76,4.2775]
[1737991272724,27.21069583,233.95,233.71,27.21069583]
[1737991272924,27.21069583,233.95,233.72,4.2783]
[1737991273119,27.21069583,233.95,233.71,27.21069583]
[1737991273620,27.21069583,233.95,233.81,0.0303102]
[1737991274226,4.2756,233.88,233.81,0.0303102]
[1737991274525,27.21069583,233.95,233.81,0.0303102]
[1737991274725,4.2758,233.86,233.81,0.0303102]
[1737991275026,27.21069583,233.95,233.81,0.0303102]
[1737991275221,4.2764,233.83,233.81,0.0303102]
[1737991275429,27.21069583,233.95,233.81,0.0303102]
[1737991275930,4.2764,233.83,233.81,0.0303102]
[1737991276228,8.7371,233.96,233.81,0.0303102]
[1737991276429,8.7371,233.96,233.76,27.21069583]
[1737991276628,4.2751,233.9,233.86,0.02999463]
[1737991277326,4.2755,233.88,233.86,0.02999463]
[1737991278929,8.7371,233.96,233.86,0.02999463]
[1737991278930,4.275,233.91,233.86,0.02999463]
[1737991279131,2.7586,233.96,233.86,0.02999463]
[1737991279831,6.1677,234.07,233.86,27.24069046]
[1737991280027,2.5659,234.06,233.86,27.24069046]
[1737991280426,4.274,233.97,233.86,27.24069046]
[1737991280627,2.5659,234.06,233.86,27.24069046]
[1737991280932,4.2746,233.93,233.86,27.21069583]
[1737991281128,2.5659,234.06,233.94,0.02702246]
[1737991281427,2.5659,234.06,233.87,4.2756]
[1737991281629,4.2734,233.99,233.98,0.03260759]
[1737991283329,27.21069583,234.13,233.98,0.03260759]
[1737991283526,4.273,234.02,233.98,0.03260759]
[1737991283724,4.273,234.02,233.94,31.48499583]
[1737991283928,2.6483,234.11,233.98,0.03010382]
[1737991284127,3.1435,234.1,233.89,27.21069583]
[1737991284327,54.42139166,233.9,233.48,27.21069583]
[1737991284529,27.21069583,233.74,233.52,5.9453]
[1737991284730,4.2785,233.72,233.56,4.2812]
[1737991284935,27.21069583,233.74,233.65,0.03054697]
[1737991285337,27.21069583,233.79,233.65,0.03054697]
[1737991285741,27.21069583,233.79,233.55,3.76]
[1737991285938,4.2781,233.74,233.7,0.03157588]
[1737991286129,27.21069583,233.74,233.56,0.76638835]
[1737991286434,8.5398,233.89,233.7,7.53e-06]
[1737991286633,4.2796,233.66,233.52,10.2272]
[1737991286833,27.21069583,233.71,233.52,5.9453]
[1737991287032,27.21069583,233.66,233.49,2.6069]